fUSD/lending_fUSD_20260111
["ID","MTS","AMOUNT","RATE_DAILY","PERIOD"]
[401378179,1768167051654,-151.0,0.000179,2]
[401378180,1768167051663,-1965.222408,0.000179,2]
[401378181,1768167051672,-173.624464,0.000179,2]
[401378182,1768167051682,-590.06318863,0.000179,2]
[401378183,1768167051691,-955.36169617,0.000179,2]
[401378184,1768167051703,-1965.222408,0.000179,2]
[401378185,1768167051712,-173.624464,0.000179,2]
[401378186,1768167051721,-151.0,0.000179,2]
[401378187,1768167051731,-160.683881,0.000179,2]
[401378188,1768167051741,-1965.222408,0.000179,2]
[401378189,1768167051750,-173.624464,0.000179,2]
[401378190,1768167051759,-196.746434,0.000179,2]
[401378191,1768167051768,-192.571095,0.000179,2]
[401378192,1768167051777,-196.746434,0.000179,2]
[401378193,1768167051787,-192.571095,0.000179,2]
[401378194,1768167051796,-2250.851841,0.000179,2]
[401378195,1768167051804,-955.36169617,0.000179,2]
[401378196,1768167051813,-196.746434,0.000179,2]
[401378197,1768167051822,-192.571095,0.000179,2]
[401378198,1768167051831,-2250.851841,0.000179,2]
[401378199,1768167051840,-955.098773,0.000179,2]
[401378200,1768167051849,-151.0,0.000179,2]
[401378201,1768167051858,-196.746434,0.000179,2]
[401378202,1768167051867,-192.571095,0.000179,2]
[401378203,1768167051877,-2250.851841,0.000179,2]
[401378204,1768167051886,-955.098773,0.000179,2]
[401378205,1768167051895,-4861.778437,0.000179,2]
[401378206,1768167051904,-151.0,0.000179,2]
[401378207,1768167051914,-2250.851841,0.000179,2]
[401378208,1768167051923,-4861.778437,0.000179,2]
[401378209,1768167051933,-955.098773,0.000179,2]
[401378210,1768167051942,-203.441097,0.000179,2]
[401378211,1768167051951,-955.36169617,0.000179,2]
[401378212,1768167051960,-4861.778437,0.000179,2]
[401378213,1768167051969,-955.098773,0.000179,2]
[401378214,1768167051979,-4861.778437,0.000179,2]
[401378215,1768167051988,-151.0,0.000179,2]
[401378216,1768167051997,-670.48,0.000179,2]
[401378217,1768167052006,-955.36169617,0.000179,2]
[401378218,1768167052016,-151.0,0.000179,2]
[401378219,1768167052025,-955.36169617,0.000179,2]
[401378220,1768167052035,-151.0,0.000179,2]
[401378221,1768167052044,-263.81978441,0.000179,3]
[401378222,1768167052053,-955.36169617,0.000179,2]
[401378223,1768167052062,-754.789807,0.000179,2]
[401378224,1768167052072,-182.359179,0.000179,2]
[401378225,1768167052081,-754.789807,0.000179,2]
[401378226,1768167052091,-955.36169617,0.000179,2]
[401378227,1768167052100,-754.789807,0.000179,2]
[401378228,1768167052110,-754.789807,0.000179,2]
[401378229,1768167052120,-432.791122,0.000179,2]
[401378230,1768167052129,-955.36169617,0.000179,2]
[401378231,1768167052139,-681.018501,0.000179,2]
[401378232,1768167052149,-499.566603,0.000179,2]
[401378233,1768167052158,-432.791122,0.000179,2]
[401378234,1768167052167,-151.0,0.000179,2]
[401378235,1768167052176,-681.018501,0.000179,2]
[401378236,1768167052185,-499.566603,0.000179,2]
[401378237,1768167052194,-432.791122,0.000179,2]
[401378238,1768167052204,-151.0,0.000179,2]
[401378239,1768167052214,-499.566603,0.000179,2]
[401378240,1768167052223,-432.791122,0.000179,2]
[401378241,1768167052233,-681.018501,0.000179,2]
[401378242,1768167052242,-151.0,0.000179,2]
[401378243,1768167052251,-499.566603,0.000179,2]
[401378244,1768167052260,-955.36169617,0.000179,2]
[401378245,1768167052270,-681.018501,0.000179,2]
[401378246,1768167052280,-955.36169617,0.000179,2]
[401378247,1768167052289,-955.36169617,0.000179,2]
[401378248,1768167052298,-955.36169617,0.000179,2]
[401378249,1768167052307,-955.36169617,0.000179,2]
[401378250,1768167052317,-7976.0,0.000179,2]
[401378251,1768167052326,-265.93844707,0.00017909,2]
[401378252,1768167052335,-1000.0,0.00017918,2]
[401378253,1768167052345,-265.93844707,0.00017927,2]
[401378254,1768167052354,-951.20233,0.0001793,2]
[401378255,1768167052363,-2171.6,0.00017936,2]
[401378256,1768167052372,-930.0,0.00017945,2]
[401378257,1768167052382,-265.93844707,0.00017945,2]
[401378258,1768167052391,-2111.0,0.00017954,2]
[401378259,1768167052400,-151.0,0.00017954,2]
[401378260,1768167052410,-151.0,0.00017954,2]
[401378261,1768167052419,-243.507281,0.00017954,2]
[401378262,1768167052428,-151.0,0.00017954,2]
[401378263,1768167052437,-151.0,0.00017954,2]
[401378264,1768167052447,-151.0,0.00017954,2]
[401378265,1768167052456,-151.0,0.00017954,2]
[401378266,1768167052465,-151.0,0.00017954,2]
[401378267,1768167052475,-151.0,0.00017954,2]
[401378268,1768167052484,-151.0,0.00017954,2]
[401378269,1768167052493,-265.93844707,0.00017964,2]
[401378270,1768167052502,-1000.0,0.00017968,2]
[401378271,1768167052512,-1000.0,0.00017972,2]
[401378272,1768167052521,-498.39272947,0.00017973,2]
[401378273,1768167052530,-500.0,0.00017973,2]
[401378274,1768167052539,-500.0,0.00017973,2]
[401378275,1768167052548,-500.0,0.00017973,2]
[401378276,1768167052557,-500.0,0.00017973,2]
[401378277,1768167052567,-500.0,0.00017973,2]
[401378278,1768167052576,-500.0,0.00017973,2]
[401378279,1768167052585,-380.05360747,0.00017973,2]
[401378280,1768167052594,-500.0,0.00017973,2]
[401378281,1768167052603,-500.0,0.00017973,2]
[401378282,1768167052611,-500.0,0.00017973,2]
[401378283,1768167052621,-500.0,0.00017973,2]
[401378284,1768167052633,-500.0,0.00017973,2]
[401378285,1768167052643,-500.0,0.00017973,2]
[401378286,1768167052652,-500.0,0.00017973,2]
[401378287,1768167052661,-500.0,0.00017973,2]
[401378288,1768167052671,-500.0,0.00017973,2]
[401378289,1768167052680,-500.0,0.00017973,2]
[401378290,1768167052689,-500.0,0.00017973,2]
[401378291,1768167052699,-500.0,0.00017973,2]
[401378292,1768167052713,-500.0,0.00017973,2]
[401378293,1768167052723,-500.0,0.00017973,2]
[401378294,1768167052732,-184.07511,0.00017973,2]
[401378295,1768167052741,-184.07511,0.00017973,2]
[401378296,1768167052750,-184.07511,0.00017973,2]
[401378297,1768167052759,-184.07511,0.00017973,2]
[401378298,1768167052768,-151.0,0.00017973,2]
[401378299,1768167052778,-151.0,0.00017973,2]
[401378300,1768167052787,-151.0,0.00017973,2]
[401378301,1768167052796,-151.0,0.00017973,2]
[401378302,1768167052806,-151.0,0.00017973,2]
[401378303,1768167052814,-152.04553,0.00017973,2]
[401378304,1768167052824,-151.0,0.00017973,2]
[401378305,1768167052833,-151.0,0.00017973,2]
[401378306,1768167052842,-151.0,0.00017973,2]
[401378307,1768167052851,-151.0,0.00017973,2]
[401378308,1768167052946,-151.0,0.00017973,2]
[401378309,1768167052993,-1000.0,0.0001798,2]
[401378310,1768167053003,-951.20233,0.0001798,2]
[401378311,1768167053014,-265.93844707,0.00017982,2]
[401378312,1768167053023,-500.0,0.00017982,2]
[401378313,1768167053033,-1504.84669514,0.0001799,2]
[401378314,1768167053043,-1062.12389034,0.0001799,2]
[401378315,1768167053053,-635.75,0.00017994,2]
[401378316,1768167053062,-549.36394183,0.00017998,2]
[401378317,1768167053072,-500.0,0.00017998,2]
[401378318,1768167053082,-500.0,0.00017998,2]
[401378319,1768167053092,-500.0,0.00017998,2]
[401378320,1768167053101,-500.0,0.00017998,2]
[401378321,1768167053111,-500.0,0.00017998,2]
[401378322,1768167053121,-500.0,0.00017998,2]
[401378323,1768167053131,-177.87,0.00017998,2]
[401378324,1768167053140,-300.0,0.00017998,2]
[401378325,1768167053149,-3484.4617323,0.00017999,2]
[401378326,1768167053159,-596233.6350143,0.00017999,2]
[401378327,1768167053169,-153.503221,0.00017999,2]
[401378328,1768167053178,-151.0,0.00017999,2]
[401378329,1768167053188,-151.0,0.00017999,2]
[401378330,1768167053197,-151.0,0.00017999,2]
[401378331,1768167053207,-568.66331461,0.00017999,2]
[401378332,1768167053218,-151.0,0.00017999,2]
[401378333,1768167053227,-151.0,0.00017999,2]
[401378334,1768167053237,-342.488988,0.00017999,2]
[401378335,1768167053248,-161.760933,0.00017999,2]
[401378336,1768167053258,-342.488988,0.00017999,2]
[401378337,1768167053267,-342.488988,0.00017999,2]
[401378338,1768167053277,-342.488988,0.00017999,2]
[401378339,1768167053286,-198.60836652,0.00017999,2]
[401378340,1768167053296,-300.0,0.00017999,2]
[401378341,1768167053306,-298.630319,0.00017999,2]
[401378342,1768167053315,-298.630319,0.00017999,2]
[401378343,1768167053325,-298.630319,0.00017999,2]
[401378344,1768167053334,-151.0,0.00017999,2]
[401378345,1768167053344,-680.939729,0.00017999,2]
[401378346,1768167053354,-298.630319,0.00017999,2]
[401378347,1768167053363,-680.939729,0.00017999,2]
[401378348,1768167053373,-151.0,0.00017999,2]
[401378349,1768167053383,-151.0,0.00017999,2]
[401378350,1768167053393,-680.939729,0.00017999,2]
[401378351,1768167053402,-151.0,0.00017999,2]
[401378352,1768167053412,-151.0,0.00017999,2]
[401378353,1768167053422,-680.939729,0.00017999,2]
[401378354,1768167053431,-272.701576,0.00017999,2]
[401378355,1768167053440,-151.0,0.00017999,2]
[401378356,1768167053449,-151.0,0.00017999,2]
[401378357,1768167053461,-151.0,0.00017999,2]
[401378358,1768167053470,-151.0,0.00017999,2]
[401378359,1768167053479,-151.0,0.00017999,2]
[401378360,1768167053489,-188.904835,0.00017999,2]
[401378361,1768167053499,-151.0,0.00017999,2]
[401378362,1768167053509,-151.0,0.00017999,2]
[401378363,1768167053519,-188.904835,0.00017999,2]
[401378364,1768167053529,-151.0,0.00017999,2]
[401378365,1768167053541,-188.904835,0.00017999,2]
[401378366,1768167053550,-188.904835,0.00017999,2]
[401378367,1768167053560,-380.840895,0.00017999,2]
[401378368,1768167053570,-151.0,0.00017999,2]
[401378369,1768167053580,-380.840895,0.00017999,2]
[401378370,1768167053590,-151.0,0.00017999,2]
[401378371,1768167053600,-151.0,0.00017999,2]
[401378372,1768167053611,-380.840895,0.00017999,2]
[401378373,1768167053622,-151.0,0.00017999,2]
[401378374,1768167053635,-380.840895,0.00017999,2]
[401378375,1768167053645,-1330.670353,0.00017999,2]
[401378376,1768167053655,-1330.670353,0.00017999,2]
[401378377,1768167053664,-151.0,0.00017999,2]
[401378378,1768167053674,-1330.670353,0.00017999,2]
[401378379,1768167053684,-1330.670353,0.00017999,2]
[401378380,1768167053694,-151.0,0.00017999,2]
[401378381,1768167053703,-662.145373,0.00017999,2]
[401378382,1768167053713,-281.191201,0.00017999,2]
[401378383,1768167053723,-151.0,0.00017999,2]
[401378384,1768167053732,-662.145373,0.00017999,2]
[401378385,1768167053742,-662.145373,0.00017999,2]
[401378386,1768167053752,-151.0,0.00017999,2]
[401378387,1768167053762,-662.145373,0.00017999,2]
[401378388,1768167053771,-151.0,0.00017999,2]
[401378389,1768167053781,-151.0,0.00017999,2]
[401378390,1768167053791,-219.778136,0.00017999,2]
[401378391,1768167053800,-151.0,0.00017999,2]
[401378392,1768167053810,-151.0,0.00017999,2]
[401378393,1768167053820,-6474.7929339,0.00017999,2]
[401378394,1768167053829,-2068.70979,0.00017999,2]
[401378395,1768167053839,-2068.70979,0.00017999,2]
[401378396,1768167053849,-2068.70979,0.00017999,2]
[401378397,1768167053859,-2068.70979,0.00017999,2]
[401378398,1768167053868,-151.0,0.00017999,2]
[401378399,1768167053878,-151.0,0.00017999,2]
[401378400,1768167053888,-300.0,0.00017999,2]
[401378401,1768167053897,-151.0,0.00017999,2]
[401378402,1768167053907,-246.453607,0.00017999,2]
[401378403,1768167053917,-151.0,0.00017999,2]
[401378404,1768167053927,-673.04563665,0.00017999,2]
[401378405,1768167053938,-246.453607,0.00017999,2]
[401378406,1768167053947,-246.453607,0.00017999,2]
[401378407,1768167053957,-246.453607,0.00017999,2]
[401378408,1768167053968,-151.0,0.00017999,2]
[401378409,1768167053978,-161.624302,0.00017999,2]
[401378410,1768167053988,-4700.883777,0.00017999,2]
[401378411,1768167053998,-151.0,0.00017999,2]
[401378412,1768167054008,-154.922684,0.00017999,2]
[401378413,1768167054018,-4700.883777,0.00017999,2]
[401378414,1768167054027,-4700.883777,0.00017999,2]
[401378415,1768167054038,-4700.883777,0.00017999,2]
[401378416,1768167054047,-790.895146,0.00017999,2]
[401378417,1768167054057,-151.0,0.00017999,2]
[401378418,1768167054067,-280.30467,0.00017999,2]
[401378419,1768167054078,-790.895146,0.00017999,2]
[401378420,1768167054088,-387.144329,0.00017999,2]
[401378421,1768167054098,-151.0,0.00017999,2]
[401378422,1768167054109,-790.895146,0.00017999,2]
[401378423,1768167054118,-387.144329,0.00017999,2]
[401378424,1768167054128,-151.0,0.00017999,2]
[401378425,1768167054139,-790.895146,0.00017999,2]
[401378426,1768167054149,-387.144329,0.00017999,2]
[401378427,1768167054160,-312.26731,0.00017999,2]
[401378428,1768167054170,-312.26731,0.00017999,2]
[401378429,1768167054180,-1312.519333,0.00017999,2]
[401378430,1768167054190,-312.26731,0.00017999,2]
[401378431,1768167054199,-690.815863,0.00017999,2]
[401378432,1768167054210,-1312.519333,0.00017999,2]
[401378433,1768167054220,-312.26731,0.00017999,2]
[401378434,1768167054229,-151.0,0.00017999,2]
[401378435,1768167054239,-690.815863,0.00017999,2]
[401378436,1768167054248,-1312.519333,0.00017999,2]
[401378437,1768167054258,-387.144329,0.00017999,2]
[401378438,1768167054269,-394.574118,0.00017999,2]
[401378439,1768167054279,-690.815863,0.00017999,2]
[401378440,1768167054289,-1312.519333,0.00017999,2]
[401378441,1768167054299,-394.574118,0.00017999,2]
[401378442,1768167054308,-690.815863,0.00017999,2]
[401378443,1768167054318,-151.0,0.00017999,2]
[401378444,1768167054328,-151.0,0.00017999,2]
[401378445,1768167054339,-394.574118,0.00017999,2]
[401378446,1768167054348,-169.229302,0.00017999,2]
[401378447,1768167054358,-394.574118,0.00017999,2]
[401378448,1768167054367,-151.0,0.00017999,2]
[401378449,1768167054377,-151.0,0.00017999,2]
[401378450,1768167054387,-151.0,0.00017999,2]
[401378451,1768167054397,-151.0,0.00017999,2]
[401378452,1768167054406,-151.0,0.00017999,2]
[401378453,1768167054415,-1046.66882,0.00017999,2]
[401378454,1768167054425,-1046.66882,0.00017999,2]
[401378455,1768167054435,-1046.66882,0.00017999,2]
[401378456,1768167054444,-1046.66882,0.00017999,2]
[401378457,1768167054454,-151.0,0.00017999,2]
[401378458,1768167054464,-170.500208,0.00017999,2]
[401378459,1768167054473,-151.0,0.00017999,2]
[401378460,1768167054483,-170.500208,0.00017999,2]
[401378461,1768167054492,-151.0,0.00017999,2]
[401378462,1768167054502,-170.500208,0.00017999,2]
[401378463,1768167054512,-151.0,0.00017999,2]
[401378464,1768167054521,-247.444459,0.00017999,2]
[401378465,1768167054531,-170.500208,0.00017999,2]
[401378466,1768167054540,-151.0,0.00017999,2]
[401378467,1768167054550,-151.0,0.00017999,2]
[401378468,1768167054560,-151.0,0.00017999,2]
[401378469,1768167054569,-151.0,0.00017999,2]
[401378470,1768167054578,-716.799137,0.00017999,2]
[401378471,1768167054588,-151.0,0.00017999,2]
[401378472,1768167054597,-716.799137,0.00017999,2]
[401378473,1768167054607,-716.799137,0.00017999,2]
[401378474,1768167054617,-716.799137,0.00017999,2]
[401378475,1768167054630,-151.0,0.00017999,2]
[401378476,1768167054639,-151.0,0.00017999,2]
[401378477,1768167054649,-151.0,0.00017999,2]
[401378478,1768167054658,-506.865865,0.00017999,2]
[401378479,1768167054669,-506.865865,0.00017999,2]
[401378480,1768167054678,-151.0,0.00017999,2]
[401378481,1768167054687,-506.865865,0.00017999,2]
[401378482,1768167054697,-151.0,0.00017999,2]
[401378483,1768167054706,-2061.870797,0.00017999,2]
[401378484,1768167054716,-151.0,0.00017999,2]
[401378485,1768167054726,-165.117805,0.00017999,2]
[401378486,1768167054736,-506.865865,0.00017999,2]
[401378487,1768167054746,-1026.274913,0.00017999,2]
[401378488,1768167054755,-425.048909,0.00017999,2]
[401378489,1768167054765,-2061.870797,0.00017999,2]
[401378490,1768167054775,-174.000186,0.00017999,2]
[401378491,1768167054784,-151.0,0.00017999,2]
[401378492,1768167054794,-1026.274913,0.00017999,2]
[401378493,1768167054804,-425.048909,0.00017999,2]
[401378494,1768167054814,-174.000186,0.00017999,2]
[401378495,1768167054823,-2061.870797,0.00017999,2]
[401378496,1768167054833,-929.163466,0.00017999,2]
[401378497,1768167054843,-151.0,0.00017999,2]
[401378498,1768167054853,-1026.274913,0.00017999,2]
[401378499,1768167054863,-151.0,0.00017999,2]
[401378500,1768167054873,-2061.870797,0.00017999,2]
[401378501,1768167054883,-425.048909,0.00017999,2]
[401378502,1768167054892,-174.000186,0.00017999,2]
[401378503,1768167054903,-580.109053,0.00017999,2]
[401378504,1768167054913,-929.163466,0.00017999,2]
[401378505,1768167054923,-1026.274913,0.00017999,2]
[401378506,1768167054933,-573.970445,0.00017999,2]
[401378507,1768167054943,-425.048909,0.00017999,2]
[401378508,1768167054952,-580.109053,0.00017999,2]
[401378509,1768167054962,-174.000186,0.00017999,2]
[401378510,1768167054972,-929.163466,0.00017999,2]
[401378511,1768167054982,-573.970445,0.00017999,2]
[401378512,1768167054993,-580.109053,0.00017999,2]
[401378513,1768167055003,-929.163466,0.00017999,2]
[401378514,1768167055013,-573.970445,0.00017999,2]
[401378515,1768167055023,-580.109053,0.00017999,2]
[401378516,1768167055033,-151.0,0.00017999,2]
[401378517,1768167055043,-573.970445,0.00017999,2]
[401378518,1768167055052,-1965.222408,0.00017999,2]
[401378519,1768167055062,-173.624464,0.00017999,2]
[401378520,1768167055072,-151.0,0.00017999,2]
[401378521,1768167055082,-1965.222408,0.00017999,2]
[401378522,1768167055091,-173.624464,0.00017999,2]
[401378523,1768167055101,-1965.222408,0.00017999,2]
[401378524,1768167055111,-151.0,0.00017999,2]
[401378525,1768167055121,-173.624464,0.00017999,2]
[401378526,1768167055131,-1965.222408,0.00017999,2]
[401378527,1768167055141,-173.624464,0.00017999,2]
[401378528,1768167055151,-196.746434,0.00017999,2]
[401378529,1768167055162,-192.571095,0.00017999,2]
[401378530,1768167055171,-196.746434,0.00017999,2]
[401378531,1768167055182,-192.571095,0.00017999,2]
[401378532,1768167055192,-2250.851841,0.00017999,2]
[401378533,1768167055490,-196.746434,0.00017999,2]
[401378534,1768167055515,-192.571095,0.00017999,2]
[401378535,1768167055525,-2250.851841,0.00017999,2]
[401378536,1768167055540,-955.098773,0.00017999,2]
[401378537,1768167055550,-151.0,0.00017999,2]
[401378538,1768167055559,-196.746434,0.00017999,2]
[401378539,1768167055569,-192.571095,0.00017999,2]
[401378540,1768167055579,-2250.851841,0.00017999,2]
[401378541,1768167055588,-4861.778437,0.00017999,2]
[401378542,1768167055597,-955.098773,0.00017999,2]
[401378543,1768167055606,-2250.851841,0.00017999,2]
[401378544,1768167055616,-4861.778437,0.00017999,2]
[401378545,1768167055626,-955.098773,0.00017999,2]
[401378546,1768167055636,-4861.778437,0.00017999,2]
[401378547,1768167055646,-955.098773,0.00017999,2]
[401378548,1768167055656,-4861.778437,0.00017999,2]
[401378549,1768167055665,-151.0,0.00017999,2]
[401378550,1768167055675,-151.0,0.00017999,2]
[401378551,1768167055684,-151.0,0.00017999,2]
[401378552,1768167055694,-754.789807,0.00017999,2]
[401378553,1768167055704,-754.789807,0.00017999,2]
[401378554,1768167055713,-754.789807,0.00017999,2]
[401378555,1768167055723,-754.789807,0.00017999,2]
[401378556,1768167055732,-432.791122,0.00017999,2]
[401378557,1768167055742,-681.018501,0.00017999,2]
[401378558,1768167055751,-499.566603,0.00017999,2]
[401378559,1768167055760,-432.791122,0.00017999,2]
[401378560,1768167055770,-151.0,0.00017999,2]
[401378561,1768167055779,-681.018501,0.00017999,2]
[401378562,1768167055789,-499.566603,0.00017999,2]
[401378563,1768167055799,-432.791122,0.00017999,2]
[401378564,1768167055809,-151.0,0.00017999,2]
[401378565,1768167055818,-499.566603,0.00017999,2]
[401378566,1768167055828,-432.791122,0.00017999,2]
[401378567,1768167055837,-681.018501,0.00017999,2]
[401378568,1768167055847,-499.566603,0.00017999,2]
[401378569,1768167055856,-681.018501,0.00017999,2]
[401378570,1768167055865,-395.895764,0.00017999,2]
[401378571,1768167055874,-395.895764,0.00017999,2]
[401378572,1768167055884,-395.895764,0.00017999,2]
[401378573,1768167055894,-395.895764,0.00017999,2]
[401378574,1768167055903,-414.496549,0.00017999,2]
[401378575,1768167055913,-151.0,0.00017999,2]
[401378576,1768167055923,-414.496549,0.00017999,2]
[401378577,1768167055933,-153.23437,0.00017999,2]
[401378578,1768167055943,-151.0,0.00017999,2]
[401378579,1768167055952,-414.496549,0.00017999,2]
[401378580,1768167055962,-151.0,0.00017999,2]
[401378581,1768167055972,-151.0,0.00017999,2]
[401378582,1768167055982,-414.496549,0.00017999,2]
[401378583,1768167055992,-151.0,0.00017999,2]
[401378584,1768167056002,-151.0,0.00017999,2]
[401378585,1768167056011,-199.832252,0.00017999,2]
[401378586,1768167056020,-151.0,0.00017999,2]
[401378587,1768167056030,-151.0,0.00017999,2]
[401378588,1768167056039,-199.832252,0.00017999,2]
[401378589,1768167056049,-151.0,0.00017999,2]
[401378590,1768167056058,-151.0,0.00017999,2]
[401378591,1768167056068,-151.0,0.00017999,2]
[401378592,1768167056077,-199.832252,0.00017999,2]
[401378593,1768167056087,-151.0,0.00017999,2]
[401378594,1768167056096,-199.832252,0.00017999,2]
[401378595,1768167056105,-168.841233,0.00017999,2]
[401378596,1768167056115,-930.0,0.00018,2]
[401378597,1768167056124,-150.0,0.00018,2]
[401378598,1768167056134,-150.0,0.00018,2]
[401378599,1768167056143,-150.0,0.00018,2]
[401378600,1768167056153,-265.93844707,0.00018,2]
[401378601,1768167056162,-150.0,0.00018,2]
[401378602,1768167056172,-150.0,0.00018,2]
[401378603,1768167056182,-150.0,0.00018,2]
[401378604,1768167056191,-150.0,0.00018,2]
[401378605,1768167056201,-150.0,0.00018,2]
[401378606,1768167056211,-150.0,0.00018,2]
[401378607,1768167056220,-150.0,0.00018,2]
[401378608,1768167056230,-89098.77222138,0.00018,2]
[401378609,1768167056780,-5410.10585365,0.00018,2]
[401378610,1768167056791,-1229.3951,0.00018,2]
[401378611,1768167057012,-151.0,0.00015582,2]
[401378612,1768167057022,-200.01,0.00016438,2]
[401378613,1768167057031,-332.52083528,0.00016878,2]
[401378614,1768167057041,-151.0,0.00017842,2]
[401378615,1768167057050,-151.0,0.00017842,2]
[401378616,1768167057059,-634.005451,0.00017842,2]
[401378617,1768167057068,-634.005451,0.00017842,2]
[401378618,1768167057078,-151.0,0.00017842,2]
[401378619,1768167057087,-151.0,0.00017999,2]
[401378620,1768167057098,-634.005451,0.00017999,2]
[401378621,1768167057107,-776.2185784,0.00018,2]
[401378622,1768167057119,-3236.21629947,0.00018,2]
[401378623,1768167057130,-604.792551,0.00018,2]
[401378624,1768167057141,-1239.93710688,0.00018,2]
[401378625,1768167057156,-10873.6298,0.00018,2]
[401378626,1768167057167,-345.5261616,0.00018,2]
[401378627,1768167057179,-911.68225139,0.00018,2]
[401378628,1768167057238,-314.96220463,0.00017389,2]
[401378629,1768167074308,500.0,0.000139,5]
[401378630,1768167116347,6500.0,0.000139,5]
[401378631,1768167154472,3200.0,0.000139,5]
[401378632,1768167440560,-594.53144502,0.00014172,2]
[401378633,1768167444116,-152.68088658,0.00014172,2]
[401378634,1768167446228,-300.0,0.00014172,2]
[401378635,1768167448279,-300.0,0.00014172,2]
[401378636,1768167450617,-300.0,0.00014172,2]
[401378637,1768167453265,-233.31822963,0.00014172,2]
[401378638,1768167456851,-477.18286113,0.00014172,2]
[401378639,1768167458445,-221.1910972,0.00014172,2]
[401378640,1768167460850,-155.04733483,0.00014172,2]
[401378641,1768167462844,-247.27177859,0.00014172,2]
[401378642,1768167466508,-222.0,0.00014172,2]
[401378643,1768167468962,-301.98869862,0.00014172,2]
[401378647,1768167575605,-349.03312016,0.00013981,2]
[401378651,1768167646927,216.06,0.00013867,2]
[401378652,1768167683841,691.17,0.0001374,2]
[401378653,1768167726221,-300.0,0.00013981,2]
[401378654,1768167729756,-339.44339648,0.00013981,2]
[401378655,1768167733015,-166.64583723,0.00013981,2]
[401378656,1768167735008,-54.37764613,0.00013981,2]
[401378657,1768167735031,-195.0,0.00013981,2]
[401378658,1768167735053,-103.54134994,0.00013981,2]
[401378659,1768167737672,-161.45865006,0.00013981,2]
[401378660,1768167737693,-96.57235387,0.00014116,2]
[401378661,1768167745856,-77.4998793,0.00014116,2]
[401378662,1768167745880,-311.5501207,0.00014172,2]
[401378663,1768167747276,-337.273836,0.00014172,2]
[401378664,1768167749937,-266.13990607,0.00014172,2]
[401378665,1768167753188,-155.01716147,0.00014172,2]
[401378666,1768167757229,-302.01870332,0.00014172,2]
[401378667,1768167758656,-151.80254426,0.00014172,2]
[401378668,1768167760136,-396.53446097,0.00014172,2]
[401378669,1768167763532,-130.85093561,0.00014172,2]
[401378670,1768167763560,-35.52722586,0.00014192,2]
[401378671,1768167768344,1476.79,0.00013869,2]
[401378672,1768167807492,1652.239347,0.00013818,2]
[401378673,1768167807517,1021.310653,0.00013818,2]
[401378674,1768167808132,-138.54500731,0.00014192,2]
[401378675,1768167808154,-40.63182555,0.00014238,2]
[401378676,1768168029412,9700.0,0.000138,5]
[401378677,1768168031501,7925.44709325,0.000139,5]
[401378678,1768168031542,11574.55290675,0.000139,5]
[401378679,1768168085926,-150.0,0.00013958,2]
[401378680,1768168085950,-53.07753592,0.00013958,2]
[401378681,1768168087722,-177.69284393,0.00013958,2]
[401378682,1768168101101,-25.00074672,0.00013958,2]
[401378683,1768168101128,-208.56556313,0.00014189,2]
[401378684,1768168102706,-13.43443687,0.00014189,2]